[Event "Titled Tuesday Blitz December 13 Late 2022"]
[White "Toncheva, Nadya"]
[Black "Topalov, Aleksandar"]
[WhiteFideId "2924056"]
[BlackFideId "925659"]
[WhiteElo "2101"]
[BlackElo "2151"]
[Result "0-1"]
[Round "09"]
[TimeControl "180+1"]
[Date "2022.12.14"]
[WhiteClock "0:00:09"]
[BlackClock "0:00:03"]

1. e4 {[%clk 0:03:00]}  e6 {[%clk 0:02:59]} 2. d4 {[%clk 0:03:00]}  d5 {[%clk 0:03:00]} 3. Nd2 {[%clk 0:03:00]}  Nf6 {[%clk 0:02:59]} 4. e5 {[%clk 0:02:59]}  Ng8 {[%clk 0:02:59]} 5. f4 {[%clk 0:02:50]}  Ne7 {[%clk 0:02:59]} 6. Bd3 {[%clk 0:02:48]}  h5 {[%clk 0:02:58]} 7. Ngf3 {[%clk 0:02:47]}  g6 {[%clk 0:02:59]} 8. Nf1 {[%clk 0:02:41]}  b6 {[%clk 0:02:58]} 9. Be3 {[%clk 0:02:41]}  Qd7 {[%clk 0:02:58]} 10. Bf2 {[%clk 0:02:39]}  Ba6 {[%clk 0:02:55]} 11. Bh4 {[%clk 0:02:33]}  Bxd3 {[%clk 0:02:52]} 12. Qxd3 {[%clk 0:02:34]}  Nf5 {[%clk 0:02:52]} 13. Bf6 {[%clk 0:02:31]}  Bg7 {[%clk 0:02:47]} 14. Bxg7 {[%clk 0:02:30]}  Nxg7 {[%clk 0:02:46]} 15. Ne3 {[%clk 0:02:30]}  c5 {[%clk 0:02:45]} 16. O-O-O {[%clk 0:02:27]}  c4 {[%clk 0:02:43]} 17. Qd2 {[%clk 0:02:22]}  Nc6 {[%clk 0:02:43]} 18. c3 {[%clk 0:02:11]}  O-O-O {[%clk 0:02:41]} 19. h3 {[%clk 0:02:11]}  h4 {[%clk 0:02:40]} 20. Qf2 {[%clk 0:02:11]}  Qe7 {[%clk 0:02:40]} 21. Ng4 {[%clk 0:02:05]}  Nf5 {[%clk 0:02:38]} 22. Nf6 {[%clk 0:02:04]}  b5 {[%clk 0:02:33]} 23. Rd2 {[%clk 0:01:58]}  Kc7 {[%clk 0:02:23]} 24. Re1 {[%clk 0:01:47]}  Rb8 {[%clk 0:02:20]} 25. Nh2 {[%clk 0:01:13]}  b4 {[%clk 0:02:18]} 26. Qf3 {[%clk 0:00:46]}  bxc3 {[%clk 0:02:15]} 27. Qxc3 {[%clk 0:00:46]}  Qb4 {[%clk 0:01:59]} 28. Nf3 {[%clk 0:00:35]}  Rb5 {[%clk 0:01:57]} 29. Rc2 {[%clk 0:00:31]}  Rhb8 {[%clk 0:01:48]} 30. a3 {[%clk 0:00:24]}  Qxc3 {[%clk 0:01:46]} 31. bxc3 {[%clk 0:00:24]}  Rb3 {[%clk 0:01:29]} 32. Kd2 {[%clk 0:00:24]}  Rxa3 {[%clk 0:01:26]} 33. Ng5 {[%clk 0:00:24]}  Nd8 {[%clk 0:01:18]} 34. Ne8+ {[%clk 0:00:23]}  Kd7 {[%clk 0:01:16]} 35. Nf6+ {[%clk 0:00:22]}  Ke7 {[%clk 0:01:11]} 36. Ng8+ {[%clk 0:00:20]}  Kf8 {[%clk 0:01:10]} 37. Nf6 {[%clk 0:00:21]}  Rb7 {[%clk 0:00:56]} 38. Rcc1 {[%clk 0:00:18]}  Rb2+ {[%clk 0:00:50]} 39. Rc2 {[%clk 0:00:17]}  Rb7 {[%clk 0:00:50]} 40. Rcc1 {[%clk 0:00:13]}  a5 {[%clk 0:00:48]} 41. Rb1 {[%clk 0:00:13]}  Rbb3 {[%clk 0:00:46]} 42. Rxb3 {[%clk 0:00:13]}  cxb3 {[%clk 0:00:46]} 43. Rb1 {[%clk 0:00:13]}  Ra2+ {[%clk 0:00:46]} 44. Kd3 {[%clk 0:00:12]}  a4 {[%clk 0:00:45]} 45. c4 {[%clk 0:00:13]}  dxc4+ {[%clk 0:00:36]} 46. Kxc4 {[%clk 0:00:12]}  Ne3+ {[%clk 0:00:35]} 47. Kb4 {[%clk 0:00:11]}  Nc6+ {[%clk 0:00:32]} 48. Kb5 {[%clk 0:00:11]}  Nxd4+ {[%clk 0:00:32]} 49. Kb6 {[%clk 0:00:09]}  Rxg2 {[%clk 0:00:21]} 50. Rc1 {[%clk 0:00:08]}  Nec2 {[%clk 0:00:18]} 51. Kc7 {[%clk 0:00:08]}  a3 {[%clk 0:00:18]} 52. Kd7 {[%clk 0:00:05]}  a2 {[%clk 0:00:18]} 53. Nfh7+ {[%clk 0:00:06]}  Kg7 {[%clk 0:00:17]} 54. Ke7 {[%clk 0:00:06]}  Nf5+ {[%clk 0:00:14]} 55. Ke8 {[%clk 0:00:05]}  a1=Q {[%clk 0:00:14]} 56. Rxa1 {[%clk 0:00:05]}  Nxa1 {[%clk 0:00:15]} 57. Nf6 {[%clk 0:00:05]}  Rc2 {[%clk 0:00:11]} 58. Kd8 {[%clk 0:00:04]}  b2 {[%clk 0:00:11]} 59. Ne8+ {[%clk 0:00:05]}  Kf8 {[%clk 0:00:10]} 60. Nh7+ {[%clk 0:00:05]}  Kg8 {[%clk 0:00:09]} 61. Nhf6+ {[%clk 0:00:05]}  Kh8 {[%clk 0:00:09]} 62. Nd6 {[%clk 0:00:05]}  Rd2 {[%clk 0:00:06]} 63. Ke8 {[%clk 0:00:05]}  Nxd6+ {[%clk 0:00:06]} 64. exd6 {[%clk 0:00:05]}  Rxd6 {[%clk 0:00:06]} 65. Kxf7 {[%clk 0:00:06]}  b1=Q {[%clk 0:00:06]} 66. Ke7 {[%clk 0:00:06]}  Qb6 {[%clk 0:00:05]} 67. Kf7 {[%clk 0:00:05]}  Qc7+ {[%clk 0:00:04]} 68. Kxg6 {[%clk 0:00:05]}  Qg7+ {[%clk 0:00:04]} 69. Kh5 {[%clk 0:00:06]}  Qxf6 {[%clk 0:00:03]} 70. f5 {[%clk 0:00:06]}  Rd5 {[%clk 0:00:01]} 71. Kg4 {[%clk 0:00:06]}  Qxf5+ {[%clk 0:00:01]} 72. Kxh4 {[%clk 0:00:06]}  Rd4+ {[%clk 0:00:02]} 73. Kg3 {[%clk 0:00:07]}  Qf4+ {[%clk 0:00:02]} 74. Kg2 {[%clk 0:00:08]}  Rd2+ {[%clk 0:00:03]} 75. Kg1 {[%clk 0:00:08]}  Qf2+ {[%clk 0:00:03]} 76. Kh1 {[%clk 0:00:09]}  Qg2# {[%clk 0:00:03]} 0-1


[Site "https://www.chess.com"]

[Event "Titled Tuesday Blitz December 13 Late 2022"]
[White "Torres Dominguez, David"]
[Black "Hoffmann, Asa"]
[WhiteFideId "2220857"]
[BlackFideId "2001470"]
[WhiteElo "2037"]
[BlackElo "2117"]
[Result "1-0"]
[Round "09"]
[TimeControl "180+1"]
[Date "2022.12.14"]
[WhiteClock "0:01:58"]
[BlackClock "0:01:58"]

1. e4 {[%clk 0:02:59]}  d6 {[%clk 0:02:57]} 2. Nc3 {[%clk 0:02:58]}  c6 {[%clk 0:02:57]} 3. f4 {[%clk 0:02:59]}  Nf6 {[%clk 0:02:56]} 4. Nf3 {[%clk 0:02:59]}  Bg4 {[%clk 0:02:55]} 5. d3 {[%clk 0:03:00]}  d5 {[%clk 0:02:54]} 6. Be2 {[%clk 0:03:00]}  dxe4 {[%clk 0:02:53]} 7. Nxe4 {[%clk 0:03:01]}  Nxe4 {[%clk 0:02:53]} 8. dxe4 {[%clk 0:03:01]}  Qxd1+ {[%clk 0:02:52]} 9. Bxd1 {[%clk 0:03:02]}  e6 {[%clk 0:02:52]} 10. Be3 {[%clk 0:03:01]}  Nd7 {[%clk 0:02:52]} 11. h3 {[%clk 0:02:58]}  Bxf3 {[%clk 0:02:51]} 12. Bxf3 {[%clk 0:02:58]}  Bc5 {[%clk 0:02:51]} 13. Ke2 {[%clk 0:02:54]}  O-O-O {[%clk 0:02:49]} 14. e5 {[%clk 0:02:49]}  Bxe3 {[%clk 0:02:49]} 15. Kxe3 {[%clk 0:02:49]}  Nb6 {[%clk 0:02:48]} 16. b3 {[%clk 0:02:44]}  Nd5+ {[%clk 0:02:47]} 17. Bxd5 {[%clk 0:02:42]}  Rxd5 {[%clk 0:02:46]} 18. Rad1 {[%clk 0:02:39]}  Rhd8 {[%clk 0:02:46]} 19. Ke2 {[%clk 0:02:34]}  Kc7 {[%clk 0:02:40]} 20. c4 {[%clk 0:02:31]}  Rxd1 {[%clk 0:02:38]} 21. Rxd1 {[%clk 0:02:31]}  Rxd1 {[%clk 0:02:37]} 22. Kxd1 {[%clk 0:02:31]}  a5 {[%clk 0:02:37]} 23. Kd2 {[%clk 0:02:29]}  Kb6 {[%clk 0:02:37]} 24. Kc3 {[%clk 0:02:29]}  Kc5 {[%clk 0:02:37]} 25. a3 {[%clk 0:02:29]}  b5 {[%clk 0:02:29]} 26. b4+ {[%clk 0:02:29]}  axb4+ {[%clk 0:02:29]} 27. axb4+ {[%clk 0:02:28]}  Kb6 {[%clk 0:02:27]} 28. Kd4 {[%clk 0:02:25]}  bxc4 {[%clk 0:02:25]} 29. Kxc4 {[%clk 0:02:25]}  f6 {[%clk 0:02:12]} 30. exf6 {[%clk 0:02:21]}  gxf6 {[%clk 0:02:11]} 31. g4 {[%clk 0:02:21]}  h6 {[%clk 0:02:07]} 32. h4 {[%clk 0:02:21]}  e5 {[%clk 0:02:05]} 33. fxe5 {[%clk 0:02:20]}  fxe5 {[%clk 0:02:05]} 34. g5 {[%clk 0:02:04]}  hxg5 {[%clk 0:02:04]} 35. hxg5 {[%clk 0:02:00]}  e4 {[%clk 0:02:02]} 36. g6 {[%clk 0:01:59]}  e3 {[%clk 0:02:01]} 37. Kd3 {[%clk 0:01:59]}  Kb5 {[%clk 0:02:00]} 38. g7 {[%clk 0:01:59]}  Kxb4 {[%clk 0:02:00]} 39. g8=Q {[%clk 0:01:58]}  c5 {[%clk 0:02:00]} 40. Qc4+ {[%clk 0:01:58]}  Ka3 {[%clk 0:01:58]} 41. Qxc5+ {[%clk 0:01:58]} 1-0


[Site "https://www.chess.com"]

[Event "Titled Tuesday Blitz December 13 Late 2022"]
[White "Yuan, Qingyu"]
[Black "Papp, Levente"]
[WhiteFideId "8609772"]
[BlackFideId "751243"]
[WhiteElo "2359"]
[BlackElo "2380"]
[Result "0-1"]
[Round "09"]
[TimeControl "180+1"]
[Date "2022.12.13"]
[WhiteClock "0:00:04"]
[BlackClock "0:00:07"]

1. e4 {[%clk 0:03:00]}  e6 {[%clk 0:03:00]} 2. d4 {[%clk 0:03:00]}  d5 {[%clk 0:02:59]} 3. Nc3 {[%clk 0:03:00]}  Bb4 {[%clk 0:02:59]} 4. e5 {[%clk 0:03:01]}  Ne7 {[%clk 0:02:59]} 5. a3 {[%clk 0:02:53]}  Bxc3+ {[%clk 0:02:59]} 6. bxc3 {[%clk 0:02:54]}  b6 {[%clk 0:03:00]} 7. Qg4 {[%clk 0:02:49]}  Ng6 {[%clk 0:02:59]} 8. h4 {[%clk 0:02:36]}  h5 {[%clk 0:02:59]} 9. Qg3 {[%clk 0:02:37]}  Ba6 {[%clk 0:02:58]} 10. Bd3 {[%clk 0:02:29]}  Bxd3 {[%clk 0:02:57]} 11. cxd3 {[%clk 0:02:28]}  c5 {[%clk 0:02:57]} 12. Ne2 {[%clk 0:02:22]}  Nc6 {[%clk 0:02:39]} 13. Bg5 {[%clk 0:02:14]}  Qc8 {[%clk 0:02:36]} 14. O-O {[%clk 0:02:03]}  Qa6 {[%clk 0:02:28]} 15. a4 {[%clk 0:01:46]}  Rc8 {[%clk 0:02:23]} 16. dxc5 {[%clk 0:01:44]}  bxc5 {[%clk 0:02:13]} 17. f4 {[%clk 0:01:38]}  Nge7 {[%clk 0:01:55]} 18. Bxe7 {[%clk 0:01:26]}  Nxe7 {[%clk 0:01:56]} 19. Qxg7 {[%clk 0:01:25]}  Rg8 {[%clk 0:01:56]} 20. Qh7 {[%clk 0:01:25]}  Rg6 {[%clk 0:01:45]} 21. f5 {[%clk 0:01:09]}  Nxf5 {[%clk 0:01:23]} 22. Rxf5 {[%clk 0:00:50]}  exf5 {[%clk 0:01:21]} 23. Nf4 {[%clk 0:00:50]}  Rg4 {[%clk 0:00:14]} 24. e6 {[%clk 0:00:25]}  fxe6 {[%clk 0:00:10]} 25. Nxd5 {[%clk 0:00:22]}  Qd6 {[%clk 0:00:05]} 26. Nf6+ {[%clk 0:00:16]}  Kd8 {[%clk 0:00:06]} 27. Rb1 {[%clk 0:00:12]}  Qxd3 {[%clk 0:00:03]} 28. Rb7 {[%clk 0:00:04]}  Qd1+ {[%clk 0:00:02]} 29. Kh2 {[%clk 0:00:04]}  Rxh4+ {[%clk 0:00:03]} 30. Kg3 {[%clk 0:00:03]}  Qe1+ {[%clk 0:00:03]} 31. Kf3 {[%clk 0:00:04]}  Qxc3+ {[%clk 0:00:04]} 32. Ke2 {[%clk 0:00:02]}  Qc2+ {[%clk 0:00:04]} 33. Kf3 {[%clk 0:00:02]}  Qd3+ {[%clk 0:00:04]} 34. Kf2 {[%clk 0:00:02]}  Qd4+ {[%clk 0:00:05]} 35. Ke2 {[%clk 0:00:03]}  Qe5+ {[%clk 0:00:05]} 36. Kd3 {[%clk 0:00:02]}  Rd4+ {[%clk 0:00:05]} 37. Kc3 {[%clk 0:00:01]}  Qe3+ {[%clk 0:00:05]} 38. Kb2 {[%clk 0:00:02]}  Rd2+ {[%clk 0:00:06]} 39. Ka1 {[%clk 0:00:03]}  Qa3+ {[%clk 0:00:05]} 40. Kb1 {[%clk 0:00:03]}  Qa2+ {[%clk 0:00:06]} 41. Kc1 {[%clk 0:00:04]}  Qc2# {[%clk 0:00:07]} 0-1


[Site "https://www.chess.com"]

[Event "Titled Tuesday Blitz December 13 Late 2022"]
[White "Al-Tarboush, Ward"]
[Black "Figorito, Nick"]
[WhiteFideId "7601450"]
[BlackFideId "30923689"]
[WhiteElo "2263"]
[BlackElo "2431"]
[Result "0-1"]
[Round "10"]
[TimeControl "180+1"]
[Date "2022.12.14"]
[WhiteClock "0:01:39"]
[BlackClock "0:00:19"]

1. e4 {[%clk 0:02:51]}  e6 {[%clk 0:03:00]} 2. d4 {[%clk 0:02:51]}  d5 {[%clk 0:03:01]} 3. exd5 {[%clk 0:02:51]}  exd5 {[%clk 0:03:01]} 4. Bd3 {[%clk 0:02:52]}  Bd6 {[%clk 0:03:01]} 5. Nc3 {[%clk 0:02:51]}  Ne7 {[%clk 0:03:00]} 6. Nb5 {[%clk 0:02:52]}  c6 {[%clk 0:02:58]} 7. Nxd6+ {[%clk 0:02:51]}  Qxd6 {[%clk 0:02:59]} 8. Ne2 {[%clk 0:02:52]}  O-O {[%clk 0:02:59]} 9. Bf4 {[%clk 0:02:52]}  Qb4+ {[%clk 0:02:52]} 10. c3 {[%clk 0:02:51]}  Qxb2 {[%clk 0:02:52]} 11. Bd6 {[%clk 0:02:49]}  Re8 {[%clk 0:02:36]} 12. O-O {[%clk 0:02:50]}  Qb6 {[%clk 0:02:19]} 13. Nf4 {[%clk 0:02:50]}  Ng6 {[%clk 0:02:04]} 14. Re1 {[%clk 0:02:47]}  Rxe1+ {[%clk 0:01:57]} 15. Qxe1 {[%clk 0:02:48]}  Qd8 {[%clk 0:01:57]} 16. Nxg6 {[%clk 0:02:36]}  hxg6 {[%clk 0:01:52]} 17. Be7 {[%clk 0:02:27]}  Qe8 {[%clk 0:01:49]} 18. h4 {[%clk 0:02:27]}  Nd7 {[%clk 0:01:39]} 19. h5 {[%clk 0:02:26]}  gxh5 {[%clk 0:01:35]} 20. Qe2 {[%clk 0:02:26]}  Nf6 {[%clk 0:01:34]} 21. Re1 {[%clk 0:02:26]}  Ne4 {[%clk 0:01:18]} 22. Bxe4 {[%clk 0:02:25]}  dxe4 {[%clk 0:01:18]} 23. Qxe4 {[%clk 0:02:24]}  Be6 {[%clk 0:01:14]} 24. Bd6 {[%clk 0:02:24]}  Qd7 {[%clk 0:01:12]} 25. Be5 {[%clk 0:02:25]}  Bd5 {[%clk 0:01:05]} 26. Qe3 {[%clk 0:02:16]}  Qg4 {[%clk 0:00:58]} 27. f3 {[%clk 0:02:16]}  Qg6 {[%clk 0:00:58]} 28. Qf4 {[%clk 0:02:14]}  Re8 {[%clk 0:00:57]} 29. Rf1 {[%clk 0:02:13]}  f6 {[%clk 0:00:55]} 30. Bd6 {[%clk 0:02:14]}  Re2 {[%clk 0:00:54]} 31. Qh2 {[%clk 0:02:15]}  h4 {[%clk 0:00:49]} 32. Qh3 {[%clk 0:02:03]}  Be6 {[%clk 0:00:46]} 33. Qh2 {[%clk 0:02:01]}  h3 {[%clk 0:00:45]} 34. Rf2 {[%clk 0:01:58]}  Qb1+ {[%clk 0:00:36]} 35. Rf1 {[%clk 0:01:58]}  Qc2 {[%clk 0:00:33]} 36. Qf4 {[%clk 0:01:57]}  Rxg2+ {[%clk 0:00:29]} 37. Kh1 {[%clk 0:01:57]}  Rg6 {[%clk 0:00:26]} 38. Qh2 {[%clk 0:01:52]}  Qxh2+ {[%clk 0:00:25]} 39. Kxh2 {[%clk 0:01:53]}  Rg2+ {[%clk 0:00:25]} 40. Kh1 {[%clk 0:01:53]}  Rxa2 {[%clk 0:00:26]} 41. Re1 {[%clk 0:01:43]}  Bd5 {[%clk 0:00:25]} 42. Re3 {[%clk 0:01:44]}  a5 {[%clk 0:00:23]} 43. c4 {[%clk 0:01:40]}  Bxc4 {[%clk 0:00:22]} 44. Re8+ {[%clk 0:01:39]}  Kh7 {[%clk 0:00:22]} 45. Re4 {[%clk 0:01:36]}  Bd5 {[%clk 0:00:21]} 46. Rh4+ {[%clk 0:01:36]}  Kg6 {[%clk 0:00:21]} 47. Rxh3 {[%clk 0:01:37]}  a4 {[%clk 0:00:21]} 48. Rg3+ {[%clk 0:01:38]}  Kf7 {[%clk 0:00:20]} 49. Kg1 {[%clk 0:01:37]}  a3 {[%clk 0:00:20]} 50. f4 {[%clk 0:01:37]}  Ra1+ {[%clk 0:00:19]} 51. Kf2 {[%clk 0:01:37]}  a2 {[%clk 0:00:20]} 52. Ra3 {[%clk 0:01:38]}  Rb1 {[%clk 0:00:18]} 53. Rxa2 {[%clk 0:01:38]}  Bxa2 {[%clk 0:00:18]} 54. f5 {[%clk 0:01:39]}  Bd5 {[%clk 0:00:19]} 55. Ke3 {[%clk 0:01:39]}  b5 {[%clk 0:00:19]} 0-1


[Site "https://www.chess.com"]

[Event "Titled Tuesday Blitz December 13 Late 2022"]
[White "Ankerst, Mihael"]
[Black "Harshavardhan G B"]
[WhiteFideId "14602369"]
[BlackFideId "25059009"]
[WhiteElo "2371"]
[BlackElo "2323"]
[Result "1/2-1/2"]
[Round "10"]
[TimeControl "180+1"]
[Date "2022.12.14"]
[WhiteClock "0:00:03"]
[BlackClock "0:00:38"]

1. e4 {[%clk 0:02:50]}  e5 {[%clk 0:02:55]} 2. Nf3 {[%clk 0:02:50]}  Nf6 {[%clk 0:02:54]} 3. Nc3 {[%clk 0:02:49]}  Nc6 {[%clk 0:02:54]} 4. d4 {[%clk 0:02:46]}  exd4 {[%clk 0:02:53]} 5. Nxd4 {[%clk 0:02:45]}  Nxe4 {[%clk 0:02:53]} 6. Nxe4 {[%clk 0:02:42]}  Qe7 {[%clk 0:02:52]} 7. f3 {[%clk 0:02:43]}  d5 {[%clk 0:02:51]} 8. Bb5 {[%clk 0:02:43]}  Bd7 {[%clk 0:02:49]} 9. Bxc6 {[%clk 0:02:43]}  bxc6 {[%clk 0:02:48]} 10. O-O {[%clk 0:02:44]}  dxe4 {[%clk 0:02:48]} 11. fxe4 {[%clk 0:02:45]}  O-O-O {[%clk 0:02:42]} 12. Qf3 {[%clk 0:02:44]}  g6 {[%clk 0:02:35]} 13. Be3 {[%clk 0:02:43]}  Bg7 {[%clk 0:02:31]} 14. c3 {[%clk 0:02:39]}  Rhe8 {[%clk 0:02:27]} 15. Nb3 {[%clk 0:02:35]}  Qxe4 {[%clk 0:02:24]} 16. Qxe4 {[%clk 0:02:34]}  Rxe4 {[%clk 0:02:25]} 17. Bxa7 {[%clk 0:02:17]}  Be6 {[%clk 0:02:20]} 18. Nc5 {[%clk 0:02:15]}  Re2 {[%clk 0:02:18]} 19. Nxe6 {[%clk 0:02:13]}  fxe6 {[%clk 0:02:18]} 20. Rf2 {[%clk 0:02:13]}  Rdd2 {[%clk 0:02:16]} 21. Rxe2 {[%clk 0:02:06]}  Rxe2 {[%clk 0:02:16]} 22. Rb1 {[%clk 0:02:00]}  e5 {[%clk 0:02:09]} 23. Kf1 {[%clk 0:01:59]}  Rc2 {[%clk 0:02:08]} 24. Bc5 {[%clk 0:01:48]}  e4 {[%clk 0:02:04]} 25. a4 {[%clk 0:01:48]}  Kb7 {[%clk 0:02:01]} 26. Ba3 {[%clk 0:01:18]}  e3 {[%clk 0:01:57]} 27. Re1 {[%clk 0:01:16]}  Rf2+ {[%clk 0:01:54]} 28. Kg1 {[%clk 0:01:17]}  Bh6 {[%clk 0:01:54]} 29. Bc5 {[%clk 0:01:06]}  Rxb2 {[%clk 0:01:52]} 30. Bxe3 {[%clk 0:01:07]}  Bxe3+ {[%clk 0:01:49]} 31. Rxe3 {[%clk 0:01:07]}  Rb3 {[%clk 0:01:47]} 32. Kf2 {[%clk 0:01:05]}  Ra3 {[%clk 0:01:46]} 33. Rh3 {[%clk 0:00:53]}  h5 {[%clk 0:01:36]} 34. Rg3 {[%clk 0:00:53]}  Ra2+ {[%clk 0:01:28]} 35. Ke3 {[%clk 0:00:51]}  Rxa4 {[%clk 0:01:23]} 36. Rxg6 {[%clk 0:00:50]}  Kb6 {[%clk 0:01:22]} 37. g3 {[%clk 0:00:45]}  h4 {[%clk 0:01:18]} 38. h3 {[%clk 0:00:34]}  hxg3 {[%clk 0:01:15]} 39. Rxg3 {[%clk 0:00:34]}  Rh4 {[%clk 0:01:14]} 40. Kf3 {[%clk 0:00:33]}  Kb5 {[%clk 0:01:11]} 41. Kg2 {[%clk 0:00:33]}  Rc4 {[%clk 0:01:09]} 42. Rf3 {[%clk 0:00:32]}  c5 {[%clk 0:01:06]} 43. Kg3 {[%clk 0:00:32]}  Ra4 {[%clk 0:01:04]} 44. h4 {[%clk 0:00:30]}  Ra1 {[%clk 0:01:01]} 45. Rf4 {[%clk 0:00:30]}  Rg1+ {[%clk 0:01:00]} 46. Kh2 {[%clk 0:00:30]}  Rg8 {[%clk 0:00:55]} 47. h5 {[%clk 0:00:28]}  c4 {[%clk 0:00:51]} 48. h6 {[%clk 0:00:28]}  Rh8 {[%clk 0:00:45]} 49. Rh4 {[%clk 0:00:27]}  Kc5 {[%clk 0:00:45]} 50. Rh5+ {[%clk 0:00:27]}  Kd6 {[%clk 0:00:45]} 51. Kg3 {[%clk 0:00:28]}  Ke6 {[%clk 0:00:44]} 52. Kf4 {[%clk 0:00:26]}  Kf6 {[%clk 0:00:44]} 53. Ke4 {[%clk 0:00:27]}  Kg6 {[%clk 0:00:44]} 54. Rh3 {[%clk 0:00:26]}  Rxh6 {[%clk 0:00:38]} 55. Rxh6+ {[%clk 0:00:23]}  Kxh6 {[%clk 0:00:39]} 56. Kd5 {[%clk 0:00:23]}  Kg6 {[%clk 0:00:39]} 57. Kxc4 {[%clk 0:00:24]}  Kf6 {[%clk 0:00:39]} 58. Kd5 {[%clk 0:00:25]}  Ke7 {[%clk 0:00:39]} 59. Kc6 {[%clk 0:00:25]}  Kd8 {[%clk 0:00:40]} 60. c4 {[%clk 0:00:19]}  Kc8 {[%clk 0:00:41]} 61. c5 {[%clk 0:00:20]}  Kd8 {[%clk 0:00:39]} 62. Kb7 {[%clk 0:00:19]}  Kd7 {[%clk 0:00:39]} 63. Kb8 {[%clk 0:00:05]}  Kc6 {[%clk 0:00:38]} 64. Kc8 {[%clk 0:00:05]}  Kxc5 {[%clk 0:00:38]} 65. Kxc7 {[%clk 0:00:03]} 1/2-1/2


[Site "https://www.chess.com"]

[Event "Titled Tuesday Blitz December 13 Late 2022"]
[White "Annaberdiyev, Babageldi"]
[Black "Svane, Rasmus"]
[WhiteFideId "14000385"]
[BlackFideId "4657101"]
[WhiteElo "2332"]
[BlackElo "2674"]
[Result "1-0"]
[Round "10"]
[TimeControl "180+1"]
[Date "2022.12.13"]
[WhiteClock "0:00:07"]
[BlackClock "0:00:04"]

1. e4 {[%clk 0:03:00]}  c6 {[%clk 0:03:00]} 2. d4 {[%clk 0:02:59]}  d5 {[%clk 0:03:01]} 3. Nd2 {[%clk 0:02:59]}  dxe4 {[%clk 0:03:01]} 4. Nxe4 {[%clk 0:02:59]}  Nf6 {[%clk 0:03:02]} 5. Nxf6+ {[%clk 0:03:00]}  exf6 {[%clk 0:03:03]} 6. Bc4 {[%clk 0:03:00]}  Bd6 {[%clk 0:03:02]} 7. Qe2+ {[%clk 0:03:01]}  Be7 {[%clk 0:03:03]} 8. Nf3 {[%clk 0:03:00]}  O-O {[%clk 0:03:03]} 9. O-O {[%clk 0:03:00]}  Bd6 {[%clk 0:03:04]} 10. Re1 {[%clk 0:03:00]}  Na6 {[%clk 0:03:05]} 11. Bd3 {[%clk 0:02:59]}  Nc7 {[%clk 0:03:03]} 12. c4 {[%clk 0:02:37]}  Re8 {[%clk 0:03:00]} 13. Qd1 {[%clk 0:02:33]}  Bg4 {[%clk 0:02:56]} 14. Rxe8+ {[%clk 0:02:29]}  Qxe8 {[%clk 0:02:57]} 15. Be3 {[%clk 0:02:26]}  Qd7 {[%clk 0:02:54]} 16. h3 {[%clk 0:02:20]}  Be6 {[%clk 0:02:54]} 17. Qc2 {[%clk 0:02:14]}  g6 {[%clk 0:02:54]} 18. Rd1 {[%clk 0:02:13]}  Rd8 {[%clk 0:02:54]} 19. a3 {[%clk 0:02:08]}  a6 {[%clk 0:02:51]} 20. Bf1 {[%clk 0:02:01]}  Bf5 {[%clk 0:02:47]} 21. Qc3 {[%clk 0:01:59]}  Be7 {[%clk 0:02:32]} 22. b4 {[%clk 0:01:54]}  b5 {[%clk 0:02:30]} 23. d5 {[%clk 0:01:48]}  cxd5 {[%clk 0:02:27]} 24. c5 {[%clk 0:01:46]}  Ne6 {[%clk 0:02:15]} 25. Nd4 {[%clk 0:01:43]}  Nxd4 {[%clk 0:02:14]} 26. Bxd4 {[%clk 0:01:44]}  Qc6 {[%clk 0:02:13]} 27. Re1 {[%clk 0:01:42]}  Kf8 {[%clk 0:01:27]} 28. Qe3 {[%clk 0:01:31]}  Re8 {[%clk 0:01:24]} 29. Qh6+ {[%clk 0:01:24]}  Kg8 {[%clk 0:01:23]} 30. Qe3 {[%clk 0:01:25]}  Bd7 {[%clk 0:01:08]} 31. Qd2 {[%clk 0:01:25]}  Be6 {[%clk 0:01:01]} 32. g3 {[%clk 0:01:22]}  Qc7 {[%clk 0:00:56]} 33. Bg2 {[%clk 0:01:22]}  Kg7 {[%clk 0:00:56]} 34. h4 {[%clk 0:01:20]}  h5 {[%clk 0:00:56]} 35. Qb2 {[%clk 0:01:13]}  Qd8 {[%clk 0:00:53]} 36. Kh2 {[%clk 0:01:07]}  Kg8 {[%clk 0:00:53]} 37. f4 {[%clk 0:01:02]}  f5 {[%clk 0:00:45]} 38. Rc1 {[%clk 0:00:58]}  Bf8 {[%clk 0:00:28]} 39. Be5 {[%clk 0:00:55]}  Qe7 {[%clk 0:00:19]} 40. c6 {[%clk 0:00:53]}  Rc8 {[%clk 0:00:19]} 41. c7 {[%clk 0:00:52]}  Qd7 {[%clk 0:00:19]} 42. Qd4 {[%clk 0:00:45]}  f6 {[%clk 0:00:14]} 43. Bxf6 {[%clk 0:00:41]}  Rxc7 {[%clk 0:00:15]} 44. Rxc7 {[%clk 0:00:41]}  Qxc7 {[%clk 0:00:15]} 45. Bxd5 {[%clk 0:00:32]}  Qd7 {[%clk 0:00:16]} 46. Bg2 {[%clk 0:00:29]}  Qf7 {[%clk 0:00:15]} 47. Be5 {[%clk 0:00:27]}  Kh7 {[%clk 0:00:15]} 48. Qb6 {[%clk 0:00:21]}  Qd7 {[%clk 0:00:13]} 49. Qxa6 {[%clk 0:00:19]}  Bc4 {[%clk 0:00:13]} 50. Qf6 {[%clk 0:00:16]}  Bg7 {[%clk 0:00:06]} 51. Qxg7+ {[%clk 0:00:16]}  Qxg7 {[%clk 0:00:07]} 52. Bxg7 {[%clk 0:00:17]}  Kxg7 {[%clk 0:00:08]} 53. Bc6 {[%clk 0:00:17]}  Kf6 {[%clk 0:00:08]} 54. a4 {[%clk 0:00:18]}  bxa4 {[%clk 0:00:08]} 55. Bxa4 {[%clk 0:00:19]}  Ke7 {[%clk 0:00:07]} 56. Bc6 {[%clk 0:00:17]}  Bf7 {[%clk 0:00:06]} 57. Kg1 {[%clk 0:00:17]}  Kd6 {[%clk 0:00:06]} 58. b5 {[%clk 0:00:17]}  Kc5 {[%clk 0:00:06]} 59. Kf2 {[%clk 0:00:17]}  Kb6 {[%clk 0:00:04]} 60. Ke3 {[%clk 0:00:16]}  Kc5 {[%clk 0:00:04]} 61. Kd3 {[%clk 0:00:17]}  Bc4+ {[%clk 0:00:04]} 62. Kc3 {[%clk 0:00:17]}  Bf7 {[%clk 0:00:03]} 63. Bd7 {[%clk 0:00:16]}  Kd6 {[%clk 0:00:03]} 64. Bc6 {[%clk 0:00:16]}  Kc5 {[%clk 0:00:04]} 65. Bd7 {[%clk 0:00:15]}  Kd6 {[%clk 0:00:04]} 66. Bc8 {[%clk 0:00:14]}  Kc5 {[%clk 0:00:04]} 67. Ba6 {[%clk 0:00:14]}  Bc4 {[%clk 0:00:04]} 68. Kd2 {[%clk 0:00:07]} 1-0


[Site "https://www.chess.com"]